bitfinex-derivatives/quotes_SOLF0:USTF0_20260311
["timestamp","ask_amount","ask_price","bid_price","bid_amount"]
[1773214073870,3.71498256,85.929,85.891,3.93416114]
[1773214076771,3.71498256,85.929,85.892,3.93416114]
[1773214077364,3.71498256,85.94,85.901,3.93416114]
[1773214078370,6.31428668,85.94,85.901,3.93416114]
[1773214078571,3.71498256,85.938,85.901,3.93416114]
[1773214082274,12.40089013,85.937,85.901,3.93416114]
[1773214082475,3.71498256,85.937,85.901,3.93416114]
[1773214083477,3.71498256,85.947,85.905,3.93416114]
[1773214086379,3.71498256,85.945,85.905,3.93416114]
[1773214088379,3.71498256,85.942,85.905,3.93416114]
[1773214088774,3.71498256,85.939,85.897,10.477]
[1773214088976,3.71498256,85.937,85.897,10.477]
[1773214089175,3.71498256,85.935,85.897,14.41116114]
[1773214089678,3.71498256,85.935,85.898,3.93416114]
[1773214090681,3.71498256,85.933,85.898,3.93416114]
[1773214093284,3.71498256,85.942,85.898,3.93416114]
[1773214093588,2.59930412,85.95,85.901,3.93416114]
[1773214093789,8.69232005,85.949,85.901,3.93416114]
[1773214094088,6.31428668,85.95,85.901,3.93416114]
[1773214094289,8.69232561,85.949,85.901,3.93416114]
[1773214094587,6.31428668,85.95,85.903,3.93416114]
[1773214094788,12.40731175,85.949,85.903,3.93416114]
[1773214095087,3.71498256,85.949,85.903,3.93416114]
[1773214095386,3.71498256,85.959,85.911,3.93416114]
[1773214095588,8.6928648,85.958,85.911,3.93416114]
[1773214095787,8.6928648,85.957,85.911,3.93416114]
[1773214096083,8.6928648,85.956,85.911,3.93416114]
[1773214096288,8.6928648,85.955,85.911,3.93416114]
[1773214096478,3.71498256,85.959,85.911,3.93416114]
[1773214096682,8.69205692,85.958,85.911,3.93416114]
[1773214096881,12.40703948,85.957,85.911,3.93416114]
[1773214097084,8.69205692,85.956,85.911,3.93416114]
[1773214097281,12.40703948,85.955,85.911,3.93416114]
[1773214097482,3.71498256,85.955,85.911,3.93416114]
[1773214111412,3.71498256,85.955,85.913,3.94535048]
[1773214115417,3.71498256,85.955,85.917,14.41935048]
[1773214118617,3.71498256,85.955,85.918,3.94535048]
[1773214123624,10.469,85.961,85.892,11.72]
[1773214123625,3.95845369,85.949,85.909,3.72142893]
[1773214124728,11.72,85.97,85.903,10.476]
[1773214124729,3.95845369,85.939,85.903,10.476]
[1773214125320,3.95845369,85.939,85.876,11.72]
[1773214125321,3.95845369,85.929,85.889,3.72142893]
[1773214125925,3.95845369,85.929,85.88,2.59870162]
[1773214126226,3.95845369,85.929,85.879,3.72142893]
[1773214126426,3.95845369,85.928,85.879,14.20042893]
[1773214127330,3.95845369,85.928,85.883,10.478]
[1773214127828,3.95845369,85.928,85.884,3.72142893]
[1773214128232,3.95845369,85.928,85.885,10.478]
[1773214130834,3.79116705,85.924,85.885,3.91001704]
[1773214131027,3.79116705,85.919,85.88,2.59870162]
[1773214131327,3.79116705,85.919,85.875,3.91001704]
[1773214132928,3.79116705,85.918,85.875,3.91001704]
[1773214133129,3.79116705,85.909,85.865,3.91001704]
[1773214135833,3.79116705,85.899,85.865,3.91001704]
[1773214138329,3.79116705,85.899,85.855,3.91001704]
[1773214138536,3.79116705,85.889,85.855,3.91001704]
[1773214140332,3.79116705,85.879,85.834,14.39401704]
[1773214140836,3.79116705,85.869,85.835,3.91001704]
[1773214141639,3.79116705,85.869,85.824,3.91001704]
[1773214142138,3.79116705,85.859,85.824,3.91001704]
[1773214143834,3.79116705,85.869,85.824,3.91001704]
[1773214144531,3.79116705,85.879,85.831,3.91001704]
[1773214145438,3.79116705,85.879,85.835,3.91001704]
[1773214152738,3.79116705,85.879,85.836,10.484]
[1773214152939,3.79116705,85.889,85.841,3.91001704]
[1773214154339,2.59870162,85.9,85.861,3.91001704]
[1773214154646,3.79116705,85.889,85.841,3.91001704]
[1773214156446,3.79116705,85.879,85.831,3.91001704]
[1773214156650,2.59870162,85.87,85.831,3.91001704]
[1773214156849,3.79116705,85.879,85.831,3.91001704]
[1773214158045,3.79116705,85.879,85.833,3.91001704]
[1773214159649,3.83554374,85.859,85.822,3.68590124]
[1773214160148,2.59870162,85.85,85.822,3.68590124]
[1773214160549,3.83554374,85.859,85.822,3.68590124]
[1773214162155,3.83554374,85.849,85.814,10.487]
[1773214162354,3.83554374,85.849,85.813,3.68590124]
[1773214162556,11.72,85.903,85.831,3.68590124]
[1773214162557,3.83554374,85.869,85.831,3.68590124]
[1773214162757,3.83554374,85.859,85.821,3.68590124]
[1773214162957,3.83554374,85.849,85.811,3.68590124]
[1773214163252,10.483,85.848,85.811,3.68590124]
[1773214163447,3.83554374,85.847,85.811,3.68590124]
[1773214165160,3.83554374,85.859,85.811,3.68590124]
[1773214165459,3.83554374,85.859,85.821,3.68590124]
[1773214166458,3.83554374,85.859,85.823,3.68590124]
[1773214167858,3.83554374,85.869,85.823,3.68590124]
[1773214169156,3.83554374,85.869,85.83,3.68590124]
[1773214174572,3.83554374,85.859,85.814,3.68590124]
[1773214178475,3.83554374,85.859,85.818,4.03681831]
[1773214179372,13.07870162,85.87,85.821,4.03681831]
[1773214179567,4.06427552,85.871,85.831,4.03681831]
[1773214180278,2.59870162,85.87,85.831,4.03681831]
[1773214180776,4.06427552,85.869,85.831,4.03681831]
[1773214183574,2.60399409,85.87,85.82,2.60399409]
[1773214183575,4.06427552,85.867,85.821,4.03681831]
[1773214185481,10.481,85.861,85.821,4.03681831]
[1773214188385,4.06427552,85.867,85.823,4.03681831]
[1773214192486,4.06427552,85.867,85.794,21.77069641]
[1773214192693,4.04799343,85.859,85.811,3.76282148]
[1773214193086,4.04799343,85.859,85.821,3.76282148]
[1773214194394,14.52899343,85.859,85.821,3.76282148]
[1773214195995,4.04799343,85.858,85.821,3.76282148]
[1773214201389,4.04799343,85.839,85.791,3.76282148]
[1773214202396,10.485,85.832,85.791,3.76282148]
[1773214203894,4.04799343,85.839,85.793,3.76282148]
[1773214205092,6.65198752,85.85,85.803,3.76282148]
[1773214206000,4.04799343,85.846,85.803,3.76282148]
[1773214206595,2.60399409,85.84,85.79,2.60399409]
[1773214206899,11.72,85.872,85.785,3.76282148]
[1773214206900,4.04799343,85.819,85.785,3.76282148]
[1773214208292,11.72,85.852,85.791,3.76282148]
[1773214208293,4.04799343,85.831,85.791,3.76282148]
[1773214208699,2.60399409,85.84,85.793,3.76282148]
[1773214210405,2.60399409,85.84,85.797,3.76282148]
[1773214210601,6.65198752,85.84,85.797,3.76282148]
[1773214210805,4.04799343,85.84,85.801,3.76282148]
[1773214211200,4.04799343,85.84,85.8,0.53681557]
[1773214212000,4.04799343,85.836,85.79,2.60399409]
[1773214212204,4.04799343,85.829,85.78,2.60399409]
[1773214212405,4.04799343,85.819,85.78,2.60399409]
[1773214213207,4.04799343,85.819,85.781,3.76282148]
[1773214214907,4.04799343,85.819,85.775,10.491]
[1773214215803,4.04799343,85.819,85.776,3.76282148]
[1773214217710,4.04799343,85.809,85.771,3.76282148]
[1773214217917,4.04799343,85.809,85.77,2.60399409]
[1773214218118,4.04799343,85.809,85.766,10.493]
[1773214218313,4.04799343,85.809,85.733,21.77069641]
[1773214218314,4.04799343,85.799,85.761,3.76282148]
[1773214218718,4.04799343,85.799,85.751,3.76282148]
[1773214219218,2.60399409,85.79,85.751,3.76282148]
[1773214220018,3.7313675,85.789,85.751,3.76282148]
[1773214220517,2.60399409,85.8,85.752,3.85330474]
[1773214220909,2.60399409,85.8,85.761,3.85330474]
[1773214221112,3.7313675,85.801,85.762,3.85330474]
[1773214222317,3.7313675,85.801,85.765,10.493]
[1773214222821,2.60399409,85.81,85.762,3.85330474]
[1773214223220,3.7313675,85.809,85.762,3.85330474]
[1773214223913,3.7313675,85.809,85.773,10.492]
[1773214224217,3.7313675,85.809,85.762,3.85330474]
[1773214225319,3.7313675,85.809,85.765,14.34630474]
[1773214226613,3.7313675,85.807,85.765,3.85330474]
[1773214227222,3.7313675,85.807,85.774,10.492]
[1773214227523,3.7313675,85.807,85.775,3.85330474]
[1773214227823,3.7313675,85.807,85.774,10.492]
[1773214228124,3.7313675,85.807,85.774,3.85330474]
[1773214228924,14.2193675,85.806,85.774,3.85330474]
[1773214229126,2.60399409,85.8,85.774,3.85330474]
[1773214229321,3.7313675,85.806,85.774,3.85330474]
[1773214231325,3.7313675,85.806,85.764,14.34630474]
[1773214231822,3.7313675,85.806,85.766,14.34630474]
[1773214232025,3.7313675,85.806,85.767,3.85330474]
[1773214233619,3.7313675,85.803,85.767,3.85330474]
[1773214235327,3.7313675,85.803,85.772,10.492]
[1773214235932,3.7313675,85.803,85.771,3.85330474]
[1773214237332,2.60399409,85.81,85.772,3.6656085]
[1773214237832,3.81612392,85.809,85.772,3.6656085]
[1773214238429,3.81612392,85.809,85.773,10.492]
[1773214238730,3.81612392,85.809,85.774,3.6656085]
[1773214239429,3.81612392,85.809,85.78,3.6656085]
[1773214240833,3.81612392,85.819,85.78,3.6656085]
[1773214242831,3.81612392,85.819,85.781,3.6656085]
[1773214246036,3.81612392,85.829,85.784,3.6656085]
[1773214246236,3.81612392,85.829,85.791,3.6656085]
[1773214247541,3.81612392,85.829,85.793,10.489]
[1773214247741,3.81612392,85.829,85.793,14.1546085]
[1773214248544,3.81612392,85.829,85.794,3.6656085]
[1773214248739,3.81612392,85.829,85.797,10.489]
[1773214253545,3.81612392,85.829,85.798,3.7447915]
[1773214253747,3.76205852,85.84,85.802,3.7447915]
[1773214253948,6.36872943,85.84,85.802,3.7447915]
[1773214254148,3.76205852,85.839,85.802,3.7447915]
[1773214256440,3.76205852,85.829,85.795,10.489]
[1773214256750,3.76205852,85.829,85.791,3.7447915]
[1773214260446,3.76205852,85.829,85.781,3.7447915]
[1773214260657,11.72,85.861,85.781,3.7447915]
[1773214260658,3.76205852,85.819,85.781,3.7447915]
[1773214262352,3.76205852,85.818,85.781,3.7447915]
[1773214264651,3.76205852,85.809,85.775,10.491]
[1773214264950,3.76205852,85.809,85.771,3.7447915]
[1773214265352,3.76205852,85.819,85.78,6.35146241]
[1773214266152,3.76205852,85.819,85.78,3.7447915]
[1773214274659,3.76205852,85.809,85.769,3.7447915]
[1773214274963,20.964,85.856,85.759,3.7447915]
[1773214274964,3.76205852,85.799,85.759,3.7447915]
[1773214276360,3.76205852,85.798,85.759,3.7447915]
[1773214277862,3.76205852,85.794,85.759,3.7447915]
[1773214278358,3.76205852,85.789,85.746,3.7447915]
[1773214278557,3.76205852,85.779,85.735,3.7447915]
[1773214278761,2.60667091,85.77,85.735,3.7447915]
[1773214279066,3.76205852,85.778,85.735,3.7447915]
[1773214280359,3.87017606,85.789,85.741,3.8137889]
[1773214282565,3.87017606,85.789,85.742,3.8137889]
[1773214284066,3.87017606,85.789,85.745,3.8137889]
[1773214286868,3.87017606,85.789,85.753,3.8137889]
[1773214292257,3.87017606,85.786,85.743,3.8137889]
[1773214292566,3.87017606,85.779,85.736,10.496]
[1773214293060,3.87017606,85.779,85.736,14.3097889]
[1773214293368,3.87017606,85.778,85.736,14.3097889]
[1773214293665,3.87017606,85.778,85.737,3.8137889]
[1773214294361,3.87017606,85.778,85.74,3.8137889]
[1773214294563,10.49,85.788,85.74,3.8137889]
[1773214294564,3.87017606,85.787,85.741,3.8137889]
[1773214294964,10.49,85.785,85.741,14.3097889]
[1773214295267,3.87017606,85.784,85.742,3.8137889]
[1773214295471,2.60667091,85.78,85.742,3.8137889]
[1773214295664,3.87017606,85.779,85.742,3.8137889]
[1773214296675,4.02732075,85.769,85.721,3.87843662]
[1773214296867,2.60667091,85.76,85.721,3.87843662]
[1773214297068,4.02732075,85.759,85.721,3.87843662]
[1773214298169,2.60667091,85.76,85.721,3.87843662]
[1773214298367,4.02732075,85.765,85.721,3.87843662]
[1773214298570,21.52237923,85.83,85.721,3.87843662]
[1773214298571,2.60667091,85.76,85.721,3.87843662]
[1773214298773,4.02732075,85.759,85.721,3.87843662]
[1773214301168,4.02732075,85.759,85.723,3.87843662]
[1773214304374,4.02732075,85.779,85.731,3.87843662]
[1773214305369,4.02732075,85.767,85.72,6.48864406]
[1773214305574,4.02732075,85.759,85.72,3.87843662]
[1773214306970,22.56219105,85.803,85.731,3.87843662]
[1773214306971,4.02732075,85.769,85.731,3.87843662]
[1773214309568,4.02732075,85.769,85.734,4.02882231]
[1773214314378,4.02732075,85.769,85.724,4.02882231]
[1773214314678,3.72051251,85.759,85.713,4.02882231]
[1773214316384,10.494,85.756,85.713,4.02882231]
[1773214317181,14.21451251,85.756,85.713,4.02882231]
[1773214318086,3.72051251,85.755,85.713,4.02882231]
[1773214318286,3.72051251,85.755,85.721,4.02882231]
[1773214330790,3.72051251,85.765,85.723,4.02882231]
[1773214332399,3.72051251,85.761,85.723,4.02882231]
[1773214332591,3.72051251,85.759,85.723,4.02882231]
[1773214335608,3.72051251,85.759,85.724,4.02882231]
[1773214341310,14.3421193,85.794,85.698,11.74]
[1773214341311,10.492,85.776,85.731,4.05028375]
[1773214341510,4.00853645,85.774,85.731,4.05028375]
[1773214341811,4.00853645,85.769,85.731,4.05028375]
[1773214342000,4.00853645,85.767,85.731,4.05028375]
[1773214342201,4.00853645,85.765,85.731,4.05028375]
[1773214342404,4.00853645,85.763,85.731,4.05028375]
[1773214345014,4.00853645,85.761,85.731,4.05028375]
[1773214347416,4.00853645,85.771,85.733,4.05028375]
[1773214347711,15.41095397,85.77,85.733,4.05028375]
[1773214348013,4.00853645,85.769,85.733,4.05028375]
[1773214348213,4.00853645,85.766,85.733,4.05028375]
[1773214350610,14.50153645,85.763,85.733,4.05028375]
[1773214350916,4.00853645,85.763,85.733,4.05028375]
[1773214362729,4.00853645,85.763,85.723,3.84290918]
[1773214368342,4.01216872,85.758,85.723,3.84290918]
[1773214369643,4.01216872,85.758,85.725,4.03007263]
[1773214377749,4.01216872,85.758,85.72,2.61016612]
[1773214377951,4.01216872,85.758,85.721,4.03007263]
[1773214380350,2.61016612,85.75,85.706,4.03007263]
[1773214380548,4.05989786,85.749,85.706,4.03007263]
[1773214381454,4.05989786,85.747,85.706,4.03007263]
[1773214383656,4.05989786,85.744,85.706,4.03007263]
[1773214388565,4.05989786,85.744,85.708,4.03007263]
[1773214389354,4.05989786,85.744,85.709,10.5]
[1773214390064,4.05989786,85.744,85.708,4.03007263]
[1773214390558,2.61016612,85.74,85.708,4.03007263]
[1773214390760,4.05989786,85.719,85.682,4.03007263]
[1773214391268,4.05989786,85.738,85.691,4.03007263]
[1773214391462,4.05989786,85.738,85.701,4.03007263]
[1773214396771,4.05989786,85.729,85.701,4.03007263]
[1773214400174,4.05989786,85.729,85.7,3.78639066]
[1773214400769,4.05989786,85.729,85.69,3.78639066]
[1773214400970,4.05989786,85.729,85.693,3.78639066]
[1773214402171,3.83309463,85.739,85.695,3.78639066]
[1773214402977,3.83309463,85.739,85.707,3.78639066]
[1773214404275,3.83309463,85.738,85.697,3.78639066]
[1773214404576,11.74,85.758,85.697,3.78639066]
[1773214404577,3.83309463,85.729,85.697,3.78639066]
[1773214410779,3.83309463,85.729,85.682,3.78639066]
[1773214411471,3.83309463,85.727,85.682,3.78639066]
[1773214412077,3.83309463,85.727,85.691,3.78639066]
[1773214415382,3.83309463,85.719,85.671,3.78639066]
[1773214415775,3.83309463,85.719,85.68,2.61016612]
[1773214415986,3.83309463,85.717,85.671,3.78639066]
[1773214416480,3.83309463,85.709,85.671,3.78639066]
[1773214421378,3.83309463,85.709,85.675,10.504]
[1773214424692,3.83309463,85.709,85.675,14.19862372]
[1773214425390,3.83309463,85.709,85.676,3.69462372]
[1773214429591,3.83309463,85.709,85.679,10.503]
[1773214429889,3.83309463,85.709,85.68,3.84457268]
[1773214433093,2.61326336,85.72,85.68,3.84457268]
[1773214433298,3.70331865,85.722,85.681,3.84457268]
[1773214434099,3.70331865,85.722,85.68,2.61326336]
[1773214434100,3.70331865,85.712,85.67,6.45783604]
[1773214434496,3.70331865,85.712,85.671,3.84457268]
[1773214435394,3.70331865,85.71,85.671,3.84457268]
[1773214439494,3.70331865,85.71,85.679,10.503]
[1773214439697,3.70331865,85.71,85.671,3.84457268]
[1773214439892,3.70331865,85.709,85.671,3.84457268]
[1773214441500,3.70331865,85.709,85.671,14.34857268]
[1773214442199,3.70331865,85.709,85.675,3.84457268]
[1773214443492,3.70331865,85.709,85.677,10.503]
[1773214444701,3.70331865,85.709,85.677,14.34757268]
[1773214446205,3.70331865,85.722,85.68,2.61326336]
[1773214446401,3.70331865,85.719,85.676,3.84457268]
[1773214447504,3.70331865,85.719,85.677,10.503]
[1773214449303,3.70331865,85.719,85.678,3.84457268]
[1773214449899,3.70331865,85.712,85.678,3.84457268]
[1773214450803,3.70331865,85.712,85.67,2.61326336]
[1773214451004,3.70331865,85.712,85.669,3.84457268]
[1773214451503,3.70331865,85.712,85.672,10.504]
[1773214452005,3.70331865,85.712,85.676,14.34857268]
[1773214454610,3.70331865,85.712,85.677,3.84457268]
[1773214454811,3.70331865,85.712,85.681,3.84457268]
[1773214467418,3.88893724,85.703,85.662,10.505]
[1773214467614,3.88893724,85.699,85.652,3.99634275]
[1773214468015,3.88893724,85.699,85.662,3.99634275]
[1773214470720,10.501,85.696,85.662,3.99634275]
[1773214472918,2.61326336,85.69,85.662,3.99634275]
[1773214473118,3.88893724,85.689,85.662,3.99634275]
[1773214473421,3.88893724,85.689,85.651,3.99634275]
[1773214473721,3.88893724,85.689,85.652,3.99634275]
[1773214474317,3.88893724,85.679,85.632,3.99634275]
[1773214474620,3.88893724,85.679,85.641,3.99634275]
[1773214476727,3.88893724,85.679,85.65,2.61326336]
[1773214476924,3.88893724,85.679,85.643,3.75845511]
[1773214477319,3.88893724,85.679,85.64,2.61326336]
[1773214478326,3.7880226,85.678,85.64,2.61326336]
[1773214480825,3.7880226,85.678,85.641,3.75845511]
[1773214482127,3.7880226,85.678,85.632,10.509]
[1773214482325,3.7880226,85.678,85.632,14.26745511]
[1773214482523,3.7880226,85.678,85.633,3.75845511]
[1773214482918,3.7880226,85.669,85.623,3.75845511]
[1773214483120,3.7880226,85.669,85.56,36.20318751]
[1773214483121,3.7880226,85.649,85.592,3.75845511]
[1773214483422,3.7880226,85.649,85.601,3.75845511]
[1773214483728,3.7880226,85.649,85.605,3.75845511]
[1773214484924,2.61326336,85.63,85.591,3.75845511]
[1773214485125,3.7880226,85.619,85.571,3.75845511]
[1773214485628,3.7880226,85.619,85.58,2.61326336]
[1773214485924,2.61326336,85.62,85.581,3.75845511]
[1773214486121,3.7880226,85.619,85.581,3.75845511]
[1773214486321,3.7880226,85.619,85.542,21.68387313]
[1773214486322,3.7880226,85.599,85.559,3.75845511]
[1773214486521,2.61326336,85.59,85.55,6.37171847]
[1773214487120,3.7880226,85.589,85.55,3.75845511]
[1773214487524,10.89746863,85.649,85.515,11.74]
[1773214487525,2.61985588,85.61,85.561,3.75845511]
[1773214487730,2.61985588,85.61,85.571,3.75845511]
[1773214490132,2.61985588,85.62,85.573,4.00800518]
[1773214490630,3.90679473,85.619,85.575,4.00800518]
[1773214491433,3.90679473,85.619,85.581,4.00800518]
[1773214493336,3.90679473,85.619,85.585,10.515]
[1773214494436,2.61985588,85.63,85.58,2.61985588]
[1773214494437,2.61985588,85.63,85.588,4.00800518]
[1773214495230,3.90679473,85.629,85.588,4.00800518]
[1773214495431,3.90679473,85.619,85.57,2.61985588]
[1773214495832,2.61985588,85.59,85.551,4.00800518]
[1773214496034,2.61985588,85.58,85.551,4.00800518]
[1773214497238,2.61985588,85.56,85.531,4.00800518]
[1773214497738,2.61985588,85.56,85.511,4.00800518]
[1773214498130,2.61985588,85.56,85.52,2.61985588]
[1773214498336,3.90679473,85.569,85.525,4.00800518]
[1773214498933,3.90679473,85.569,85.528,10.522]
[1773214499241,3.90679473,85.569,85.531,4.00800518]
[1773214499937,3.90679473,85.569,85.534,10.521]
[1773214500141,2.61985588,85.58,85.535,4.00800518]
[1773214500331,3.90679473,85.579,85.54,2.61985588]
[1773214500636,2.61985588,85.59,85.542,4.00800518]
[1773214500939,3.90679473,85.592,85.551,4.00800518]
[1773214501537,3.90679473,85.592,85.552,10.519]
[1773214501736,3.90679473,85.592,85.551,4.00800518]
[1773214501938,3.90679473,85.589,85.551,4.00800518]
[1773214503841,2.61985588,85.6,85.551,4.00800518]
[1773214504037,3.90679473,85.599,85.551,4.00800518]
[1773214504540,3.90679473,85.599,85.56,10.518]
[1773214505236,3.90679473,85.607,85.563,4.00800518]
[1773214506538,3.90679473,85.607,85.57,2.61985588]
[1773214506733,3.90679473,85.607,85.563,4.00800518]
[1773214506936,3.90679473,85.607,85.571,4.00800518]
[1773214507336,3.90679473,85.607,85.573,10.516]
[1773214507538,3.90679473,85.607,85.571,4.00800518]
[1773214507841,10.511,85.619,85.571,4.00800518]
[1773214508139,3.90679473,85.618,85.571,4.00800518]
[1773214509342,3.90679473,85.618,85.572,10.516]
[1773214509942,10.511,85.613,85.571,4.00800518]
[1773214510140,2.61985588,85.61,85.571,4.00800518]
[1773214511443,3.90679473,85.612,85.571,4.00800518]
[1773214512247,3.90679473,85.612,85.576,10.516]
[1773214514045,3.90679473,85.612,85.571,4.00800518]
[1773214514450,3.90679473,85.589,85.542,4.00800518]
[1773214514746,3.90679473,85.579,85.542,4.00800518]
[1773214515251,3.90679473,85.589,85.545,4.00800518]
[1773214515447,2.61985588,85.58,85.545,4.00800518]
[1773214516841,3.90679473,85.587,85.545,4.00800518]
[1773214517042,3.90679473,85.584,85.545,4.00800518]
[1773214517350,2.61985588,85.56,85.53,4.00800518]
[1773214517550,2.61985588,85.56,85.511,4.00800518]
[1773214517950,2.61985588,85.55,85.511,4.00800518]
[1773214518846,3.90679473,85.55,85.511,4.00800518]
[1773214519245,2.61985588,85.56,85.511,4.00800518]
[1773214519458,2.61985588,85.55,85.511,4.00800518]
[1773214520555,3.90679473,85.551,85.511,4.00800518]
[1773214520956,10.518,85.561,85.504,10.525]
[1773214520957,4.06024999,85.549,85.504,10.525]
[1773214521157,2.61985588,85.53,85.489,3.73089581]
[1773214521352,4.06024999,85.529,85.49,2.61985588]
[1773214521658,2.61985588,85.52,85.473,3.73089581]
[1773214522063,10.522,85.527,85.481,3.73089581]
[1773214522363,4.06024999,85.526,85.481,3.73089581]
[1773214522755,2.61985588,85.52,85.481,3.73089581]
[1773214522961,4.06024999,85.526,85.481,3.73089581]
[1773214523362,4.06024999,85.524,85.481,3.73089581]
[1773214523966,4.06024999,85.539,85.491,3.73089581]
[1773214526066,2.61985588,85.55,85.501,3.73089581]
[1773214526265,4.06024999,85.549,85.501,3.73089581]
[1773214527063,4.06024999,85.563,85.52,2.61985588]
[1773214527263,4.06024999,85.563,85.511,3.73089581]
[1773214527264,2.61985588,85.56,85.511,3.73089581]
[1773214527562,4.06024999,85.559,85.511,3.73089581]
[1773214528170,4.06024999,85.539,85.49,2.61985588]
[1773214528365,21.03,85.588,85.486,3.73089581]
[1773214528366,4.06024999,85.529,85.486,3.73089581]
[1773214530869,4.06024999,85.529,85.49,2.61985588]
[1773214531472,4.06024999,85.529,85.5,2.61985588]
[1773214532573,4.06024999,85.529,85.491,3.73089581]
[1773214532970,4.06024999,85.529,85.48,6.35075169]
[1773214533170,6.68010587,85.54,85.491,3.73089581]
[1773214533470,4.06024999,85.539,85.491,3.73089581]
[1773214534272,4.06024999,85.539,85.493,3.73089581]
[1773214534668,4.06024999,85.539,85.481,3.73089581]
[1773214535467,4.06024999,85.537,85.49,6.35075169]
[1773214537477,4.06024999,85.534,85.49,6.35075169]
[1773214537877,4.06024999,85.534,85.491,3.73089581]
[1773214538580,4.06024999,85.549,85.491,3.73089581]
[1773214538783,4.06024999,85.549,85.501,3.73089581]
[1773214539183,4.06024999,85.549,85.51,2.61985588]
[1773214539478,4.06024999,85.549,85.501,3.73089581]
[1773214539786,4.06024999,85.544,85.501,3.73089581]
[1773214541482,21.03,85.588,85.452,34.97]
[1773214541483,3.91881522,85.561,85.511,3.84896127]
[1773214541678,3.91881522,85.561,85.521,3.84896127]
[1773214544885,10.75798181,85.607,85.473,21.058]
[1773214544886,3.91881522,85.574,85.531,3.84896127]
[1773214545883,3.91881522,85.569,85.52,2.61985588]
[1773214546486,3.91881522,85.569,85.521,3.84896127]
[1773214547386,3.91881522,85.568,85.521,3.84896127]
[1773214550781,3.91881522,85.568,85.522,3.79449259]
[1773214550978,3.91881522,85.568,85.53,2.62225674]
[1773214551287,3.91881522,85.568,85.531,3.79449259]
[1773214551881,6.48133325,85.58,85.532,3.79449259]
[1773214552081,3.85907651,85.579,85.532,3.79449259]
[1773214553186,10.517,85.567,85.532,3.79449259]
[1773214554488,3.85907651,85.569,85.532,3.79449259]
[1773214556990,3.85907651,85.569,85.536,10.521]
[1773214557191,3.85907651,85.569,85.532,3.79449259]
[1773214559393,3.85907651,85.569,85.535,10.521]
[1773214559583,3.85907651,85.569,85.536,3.79449259]
[1773214560693,6.48133325,85.58,85.536,3.79449259]
[1773214561393,10.516,85.579,85.536,3.79449259]
[1773214561784,3.85907651,85.578,85.538,3.79449259]
[1773214561987,3.85907651,85.586,85.541,3.79449259]
[1773214562591,3.85907651,85.584,85.541,3.79449259]
[1773214563697,2.62225674,85.58,85.541,3.79449259]
[1773214564194,3.85907651,85.579,85.541,3.79449259]
[1773214564501,10.515,85.585,85.541,3.79449259]
[1773214564699,2.62225674,85.58,85.541,3.79449259]
[1773214564998,3.85907651,85.579,85.541,3.79449259]
[1773214565394,3.85907651,85.569,85.529,3.79449259]
[1773214565700,3.85907651,85.569,85.531,3.79449259]
[1773214567593,10.516,85.575,85.531,3.79449259]
[1773214567797,3.85907651,85.568,85.512,3.79449259]
[1773214567995,3.85907651,85.559,85.512,3.79449259]
[1773214569399,10.518,85.557,85.512,3.79449259]
[1773214571303,10.518,85.557,85.515,3.79449259]
[1773214571495,3.85907651,85.559,85.515,3.79449259]
[1773214572500,3.85907651,85.559,85.517,3.79449259]
[1773214573602,3.85907651,85.559,85.464,11.74]
[1773214573603,3.85907651,85.539,85.502,3.79449259]
[1773214574296,3.85907651,85.539,85.49,3.79449259]
[1773214574297,2.62225674,85.53,85.49,3.79449259]
[1773214575596,2.62225674,85.53,85.491,3.79449259]
[1773214576505,3.85907651,85.539,85.493,3.79449259]
[1773214576907,11.76,85.566,85.501,3.79449259]
[1773214576908,3.85907651,85.549,85.501,3.79449259]
[1773214578103,6.48133325,85.56,85.511,3.79449259]
[1773214578303,3.85907651,85.559,85.511,3.79449259]
[1773214578507,6.48133325,85.54,85.5,3.79449259]
[1773214578810,3.85907651,85.539,85.5,3.79449259]
[1773214581511,11.76,85.566,85.48,3.84657898]
[1773214581512,3.75346222,85.528,85.48,3.84657898]
[1773214581710,3.75346222,85.528,85.481,3.84657898]
[1773214582507,14.27546222,85.527,85.481,3.84657898]
[1773214582707,3.75346222,85.526,85.481,3.84657898]
[1773214583108,3.75346222,85.526,85.482,3.84657898]
[1773214584204,11.76,85.566,85.427,8.74311524]
[1773214584205,3.50991536,85.489,85.427,8.74311524]
[1773214584410,2.62225674,85.44,85.347,29.08413364]
[1773214584716,2.62225674,85.44,85.39,2.62225674]
[1773214585008,3.50991536,85.448,85.4,2.62225674]
[1773214585203,2.62225674,85.44,85.4,2.62225674]
[1773214585404,3.75346222,85.439,85.39,2.62225674]
[1773214586305,3.75346222,85.439,85.391,8.9811791]
[1773214586511,3.75346222,85.439,85.4,2.62225674]
[1773214586714,3.75346222,85.459,85.41,2.62225674]
[1773214586917,3.75346222,85.474,85.43,2.62225674]
[1773214587313,3.75346222,85.469,85.42,2.62225674]